fUST/lending_fUST_20240325
["ID","MTS","AMOUNT","RATE_DAILY","PERIOD"]
[320348325,1711314652597,-2000.0,0.0007,120]
[320348327,1711314652606,-1437.23507521,0.0007,120]
[320348329,1711314652615,-1780.77509683,0.00070308,120]
[320348331,1711314652624,-685.02748362,0.00070308,120]
[320348333,1711314652633,-1780.77509683,0.00071063,120]
[320348335,1711314652643,-685.02748362,0.00071063,120]
[320348337,1711314652652,-500.0,0.00071232,120]
[320348338,1711314652662,-500.0,0.00071232,120]
[320348340,1711314652673,-803.28,0.00071232,120]
[320348343,1711314652683,-500.0,0.00071232,120]
[320348345,1711314652692,-499.07318965,0.00071232,120]
[320348347,1711314652702,-500.0,0.00071232,120]
[320348348,1711314652710,-500.0,0.00071232,120]
[320348350,1711314652720,-500.0,0.00071232,120]
[320348352,1711314652730,-500.0,0.00071232,120]
[320348355,1711314652739,-500.0,0.00071232,120]
[320348356,1711314652748,-715.49,0.00071232,120]
[320348359,1711314652758,-500.0,0.00071232,120]
[320348361,1711314652769,-500.0,0.00071232,120]
[320348363,1711314652779,-500.0,0.00071232,120]
[320348365,1711314652790,-500.0,0.00071232,120]
[320348366,1711314652799,-500.0,0.00071232,120]
[320348369,1711314652810,-500.0,0.00071232,120]
[320348371,1711314652819,-500.0,0.00071232,2]
[320348372,1711314652829,-500.0,0.00071232,120]
[320348374,1711314652839,-2206.63,0.00071232,120]
[320348377,1711314652849,-500.0,0.00071232,120]
[320348379,1711314652858,-2011.08,0.00071232,120]
[320348381,1711314652867,-500.0,0.00071232,120]
[320348383,1711314652877,-500.0,0.00071232,120]
[320348385,1711314652886,-500.0,0.00071232,120]
[320348387,1711314652895,-545.3,0.00071232,120]
[320348389,1711314652903,-500.0,0.00071232,120]
[320348391,1711314652912,-500.0,0.00071232,120]
[320348393,1711314652921,-500.0,0.00071232,120]
[320348395,1711314652930,-367.50434828,0.00071232,120]
[320348397,1711314652939,-500.0,0.00071232,120]
[320348399,1711314652948,-420.10847245,0.00071232,120]
[320348400,1711314652957,-943.16,0.00071232,120]
[320348402,1711314652970,-514.3,0.00071232,120]
[320348405,1711314652979,-3472.67,0.00071232,120]
[320348407,1711314652989,-500.0,0.00071232,120]
[320348408,1711314652997,-500.0,0.00071232,120]
[320348411,1711314653007,-500.0,0.00071232,120]
[320348413,1711314653016,-500.0,0.00071232,120]
[320348414,1711314653026,-500.0,0.00071232,120]
[320348417,1711314653036,-500.0,0.00071232,120]
[320348418,1711314653046,-500.0,0.00071232,120]
[320348420,1711314653056,-500.0,0.00071232,120]
[320348422,1711314653065,-500.0,0.00071232,120]
[320348424,1711314653074,-500.0,0.00071232,120]
[320348426,1711314653085,-500.0,0.00071232,120]
[320348429,1711314653094,-958.04,0.00071232,120]
[320348430,1711314653104,-500.14,0.00071232,120]
[320348432,1711314653113,-500.0,0.00071232,120]
[320348434,1711314653125,-500.0,0.00071232,120]
[320348436,1711314653136,-500.0,0.00071232,120]
[320348438,1711314653145,-500.0,0.00071232,120]
[320348445,1711314653207,-500.0,0.00071232,120]
[320348447,1711314653217,-500.0,0.00071232,120]
[320348449,1711314653226,-500.0,0.00071232,120]
[320348451,1711314653235,-725.0,0.00071232,120]
[320348453,1711314653244,-500.0,0.00071232,120]
[320348455,1711314653253,-202.43077595,0.00071232,120]
[320348457,1711314653262,-500.0,0.00071232,120]
[320348459,1711314653271,-500.0,0.00071232,120]
[320348461,1711314653279,-500.0,0.00071232,120]
[320348463,1711314653288,-500.0,0.00071232,60]
[320348464,1711314653297,-500.0,0.00071232,120]
[320348466,1711314653308,-500.0,0.00071232,120]
[320348468,1711314653317,-2420.29,0.00071232,120]
[320348470,1711314653326,-500.0,0.00071232,120]
[320348472,1711314653336,-500.0,0.00071232,120]
[320348474,1711314653344,-2246.99,0.00071232,120]
[320348476,1711314653354,-500.0,0.00071232,120]
[320348478,1711314653364,-520.98,0.00071232,120]
[320348480,1711314653373,-547.6,0.00071232,120]
[320348482,1711314653384,-500.0,0.00071232,120]
[320348484,1711314653394,-500.0,0.00071232,120]
[320348486,1711314653405,-500.0,0.00071232,120]
[320348488,1711314653415,-500.0,0.00071232,120]
[320348490,1711314653426,-500.0,0.00071232,120]
[320348492,1711314653436,-500.0,0.00071232,120]
[320348494,1711314653446,-503.92947366,0.00071232,120]
[320348496,1711314653457,-500.0,0.00071232,120]
[320348498,1711314653469,-500.0,0.00071232,120]
[320348500,1711314653479,-17480.93,0.00071232,120]
[320348502,1711314653490,-500.0,0.00071232,120]
[320348504,1711314653501,-8365.44,0.00071232,120]
[320348506,1711314653511,-500.0,0.00071232,120]
[320348508,1711314653520,-500.0,0.00071232,60]
[320348510,1711314653530,-508.8,0.00071232,120]
[320348511,1711314653540,-4057.13,0.00071232,2]
[320348513,1711314653549,-604.16,0.00071232,120]
[320348515,1711314653559,-12362.09,0.00071232,120]
[320348517,1711314653568,-500.0,0.00071232,120]
[320348519,1711314653578,-748.03,0.00071232,120]
[320348521,1711314653587,-2125.6,0.00071232,120]
[320348523,1711314653596,-500.0,0.00071232,120]
[320348525,1711314653605,-2970.68,0.00071232,120]
[320348527,1711314653614,-694.69,0.00071232,120]
[320348529,1711314653623,-22313.25,0.00071232,120]
[320348531,1711314653633,-500.0,0.00071232,120]
[320348533,1711314653642,-500.0,0.00071232,120]
[320348535,1711314653651,-500.0,0.00071232,120]
[320348537,1711314653661,-4561.4,0.00071232,120]
[320348539,1711314653670,-500.0,0.00071232,120]
[320348541,1711314653679,-1831.01,0.00071232,120]
[320348543,1711314653687,-4406.86,0.00071232,120]
[320348545,1711314653699,-500.0,0.00071232,120]
[320348547,1711314653708,-1837.47,0.00071232,120]
[320348549,1711314653719,-658.57,0.00071232,120]
[320348551,1711314653728,-500.0,0.00071232,120]
[320348553,1711314653737,-2332.34,0.00071232,120]
[320348555,1711314653746,-500.0,0.00071232,120]
[320348557,1711314653755,-2761.55,0.00071232,120]
[320348559,1711314653764,-5308.35,0.00071232,120]
[320348561,1711314653774,-500.0,0.00071232,120]
[320348563,1711314653784,-298.86283824,0.00071232,120]
[320348565,1711314653793,-11981.95,0.00071232,120]
[320348567,1711314653802,-2313.51,0.00071232,120]
[320348569,1711314653811,-500.0,0.00071232,120]
[320348571,1711314653821,-507.88,0.00071232,120]
[320348573,1711314653830,-180.72142292,0.00071232,120]
[320348575,1711314653840,-500.0,0.00071232,120]
[320348577,1711314653848,-993.58,0.00071232,120]
[320348579,1711314653858,-500.0,0.00071232,120]
[320348581,1711314653867,-915.03,0.00071232,120]
[320348583,1711314653876,-612.08,0.00071232,120]
[320348585,1711314653886,-500.0,0.00071232,120]
[320348587,1711314653895,-500.0,0.00071232,120]
[320348589,1711314653904,-2001.62,0.00071232,120]
[320348591,1711314653914,-1087.35,0.00071232,120]
[320348593,1711314653924,-22472.06,0.00071232,120]
[320348595,1711314653933,-25985.32,0.00071232,90]
[320348597,1711314653942,-989.84,0.00071232,120]
[320348599,1711314653951,-1543.9,0.00071232,120]
[320348600,1711314653961,-3779.01,0.00071232,120]
[320348602,1711314653973,-500.0,0.00071232,120]
[320348604,1711314653982,-5233.88,0.00071232,21]
[320348606,1711314653992,-1878.52,0.00071232,120]
[320348608,1711314654001,-500.0,0.00071232,120]
[320348610,1711314654010,-1817.9,0.00071232,120]
[320348612,1711314654019,-500.0,0.00071232,120]
[320348614,1711314654028,-500.0,0.00071232,120]
[320348616,1711314654037,-1440.6,0.00071232,120]
[320348618,1711314654046,-500.0,0.00071232,120]
[320348620,1711314654055,-500.0,0.00071232,120]
[320348622,1711314654064,-2284.3,0.00071232,120]
[320348624,1711314654073,-500.0,0.00071232,120]
[320348626,1711314654082,-500.0,0.00071232,120]
[320348628,1711314654091,-500.0,0.00071232,120]
[320348630,1711314654101,-2647.26,0.00071232,120]
[320348632,1711314654110,-500.0,0.00071232,120]
[320348634,1711314654120,-4853.11,0.00071232,120]
[320348636,1711314654130,-500.0,0.00071232,120]
[320348638,1711314654139,-1492.3,0.00071232,120]
[320348640,1711314654148,-151.83038067,0.00071528,120]
[320348642,1711314654157,-1780.77509683,0.00071818,120]
[320348644,1711314654168,-685.02748362,0.00071818,120]
[320348646,1711314654178,-151.83038067,0.00072528,120]
[320348648,1711314654187,-1780.77509683,0.00072573,120]
[320348650,1711314654197,-685.02748362,0.00072573,120]
[320348652,1711314654206,-1762.09127664,0.00073,7]
[320348654,1711314654215,-17136.01149979,0.00073,7]
[320348656,1711314654226,-531.0043818,0.00073,7]
[320348658,1711314654235,-1780.77509683,0.00073329,120]
[320348660,1711314654244,-685.02748362,0.00073329,120]
[320348662,1711314654254,-151.83038066,0.00073528,120]
[320348664,1711314654263,-500.0,0.00073972,120]
[320348666,1711314654272,-500.0,0.00073972,120]
[320348668,1711314654281,-803.28,0.00073972,120]
[320348670,1711314654290,-500.0,0.00073972,120]
[320348672,1711314654299,-500.0,0.00073972,120]
[320348674,1711314654308,-500.0,0.00073972,120]
[320348676,1711314654318,-500.0,0.00073972,120]
[320348678,1711314654327,-500.0,0.00073972,120]
[320348680,1711314654336,-500.0,0.00073972,120]
[320348682,1711314654345,-715.49,0.00073972,120]
[320348684,1711314654354,-500.0,0.00073972,120]
[320348686,1711314654363,-500.0,0.00073972,120]
[320348688,1711314654372,-500.0,0.00073972,120]
[320348690,1711314654381,-500.0,0.00073972,120]
[320348692,1711314654390,-500.0,0.00073972,120]
[320348694,1711314654399,-500.0,0.00073972,120]
[320348696,1711314654408,-500.0,0.00073972,2]
[320348697,1711314654417,-500.0,0.00073972,120]
[320348698,1711314654426,-2206.63,0.00073972,120]
[320348699,1711314654434,-500.0,0.00073972,120]
[320348700,1711314654443,-2011.08,0.00073972,120]
[320348701,1711314654452,-500.0,0.00073972,120]
[320348702,1711314654461,-500.0,0.00073972,120]
[320348703,1711314654470,-500.0,0.00073972,120]
[320348704,1711314654479,-545.3,0.00073972,120]
[320348705,1711314654487,-500.0,0.00073972,120]
[320348706,1711314654498,-500.0,0.00073972,120]
[320348707,1711314654506,-500.0,0.00073972,120]
[320348708,1711314654517,-500.0,0.00073972,120]
[320348709,1711314654526,-943.16,0.00073972,120]
[320348710,1711314654535,-514.3,0.00073972,120]
[320348711,1711314654544,-3472.67,0.00073972,120]
[320348712,1711314654554,-500.0,0.00073972,120]
[320348713,1711314654564,-500.0,0.00073972,120]
[320348714,1711314654573,-500.0,0.00073972,120]
[320348715,1711314654583,-500.0,0.00073972,120]
[320348716,1711314654592,-500.0,0.00073972,120]
[320348717,1711314654601,-500.0,0.00073972,120]
[320348718,1711314654610,-449.23644537,0.00073972,120]
[320348719,1711314654619,-500.0,0.00073972,120]
[320348720,1711314654628,-500.0,0.00073972,120]
[320348721,1711314654637,-500.0,0.00073972,120]
[320348722,1711314654646,-500.0,0.00073972,120]
[320348723,1711314654656,-958.04,0.00073972,120]
[320348724,1711314654666,-500.14,0.00073972,120]
[320348725,1711314654675,-500.0,0.00073972,120]
[320348726,1711314654685,-307.92670343,0.00073972,120]
[320348727,1711314654694,-500.0,0.00073972,120]
[320348728,1711314654702,-556.74338516,0.00073972,120]
[320348729,1711314654712,-633.24378043,0.00073972,120]
[320348730,1711314654722,-500.0,0.00073972,120]
[320348731,1711314654731,-500.0,0.00073972,120]
[320348732,1711314654740,-725.0,0.00073972,120]
[320348733,1711314654750,-500.0,0.00073972,120]
[320348734,1711314654759,-500.0,0.00073972,120]
[320348735,1711314654768,-500.0,0.00073972,120]
[320348736,1711314654777,-500.0,0.00073972,120]
[320348737,1711314654786,-500.0,0.00073972,60]
[320348738,1711314654795,-500.0,0.00073972,120]
[320348739,1711314654804,-500.0,0.00073972,120]
[320348740,1711314654813,-2420.29,0.00073972,120]
[320348741,1711314654822,-500.0,0.00073972,120]
[320348742,1711314654832,-500.0,0.00073972,120]
[320348743,1711314654840,-2246.99,0.00073972,120]
[320348744,1711314654850,-500.0,0.00073972,120]
[320348745,1711314654859,-520.98,0.00073972,120]
[320348746,1711314654871,-547.6,0.00073972,120]
[320348747,1711314654880,-500.0,0.00073972,120]
[320348748,1711314654889,-500.50110205,0.00073972,120]
[320348749,1711314654898,-500.0,0.00073972,120]
[320348750,1711314654907,-500.0,0.00073972,120]
[320348751,1711314654917,-500.0,0.00073972,120]
[320348752,1711314654926,-500.0,0.00073972,120]
[320348753,1711314654935,-500.0,0.00073972,120]
[320348754,1711314654944,-500.0,0.00073972,120]
[320348755,1711314654953,-17480.93,0.00073972,120]
[320348756,1711314654962,-501.10048248,0.00073972,120]
[320348757,1711314654972,-8365.44,0.00073972,120]
[320348758,1711314654981,-500.0,0.00073972,120]
[320348759,1711314654990,-500.0,0.00073972,60]
[320348760,1711314654999,-508.8,0.00073972,120]
[320348761,1711314655009,-4057.13,0.00073972,2]
[320348762,1711314655018,-604.16,0.00073972,120]
[320348763,1711314655027,-12362.09,0.00073972,120]
[320348764,1711314655037,-500.0,0.00073972,120]
[320348765,1711314655046,-748.03,0.00073972,120]
[320348766,1711314655055,-2125.6,0.00073972,120]
[320348767,1711314655064,-500.0,0.00073972,120]
[320348768,1711314655073,-2970.68,0.00073972,120]
[320348769,1711314655082,-694.69,0.00073972,120]
[320348770,1711314655091,-22313.25,0.00073972,120]
[320348771,1711314655101,-500.0,0.00073972,120]
[320348772,1711314655110,-500.0,0.00073972,120]
[320348773,1711314655120,-500.0,0.00073972,120]
[320348774,1711314655129,-4561.4,0.00073972,120]
[320348775,1711314655140,-500.0,0.00073972,120]
[320348776,1711314655149,-1831.01,0.00073972,120]
[320348777,1711314655158,-4406.86,0.00073972,120]
[320348778,1711314655167,-500.0,0.00073972,120]
[320348779,1711314655177,-1837.47,0.00073972,120]
[320348780,1711314655186,-658.57,0.00073972,120]
[320348781,1711314655196,-500.0,0.00073972,120]
[320348782,1711314655206,-2332.34,0.00073972,120]
[320348792,1711314655295,-500.0,0.00073972,120]
[320348794,1711314655304,-2761.55,0.00073972,120]
[320348796,1711314655314,-5308.35,0.00073972,120]
[320348798,1711314655323,-500.0,0.00073972,120]
[320348800,1711314655332,-11981.95,0.00073972,120]
[320348802,1711314655341,-2313.51,0.00073972,120]
[320348803,1711314655350,-500.0,0.00073972,120]
[320348804,1711314655359,-507.88,0.00073972,120]
[320348805,1711314655368,-500.0,0.00073972,120]
[320348807,1711314655378,-993.58,0.00073972,120]
[320348809,1711314655387,-500.0,0.00073972,120]
[320348811,1711314655396,-915.03,0.00073972,120]
[320348813,1711314655405,-612.08,0.00073972,120]
[320348814,1711314655414,-500.0,0.00073972,120]
[320348815,1711314655423,-601.68089456,0.00073972,120]
[320348816,1711314655432,-2001.62,0.00073972,120]
[320348817,1711314655441,-1087.35,0.00073972,120]
[320348819,1711314655450,-22472.06,0.00073972,120]
[320348821,1711314655459,-25985.32,0.00073972,90]
[320348823,1711314655470,-989.84,0.00073972,120]
[320348825,1711314655479,-1543.9,0.00073972,120]
[320348827,1711314655488,-3779.01,0.00073972,120]
[320348829,1711314655497,-500.0,0.00073972,120]
[320348831,1711314655506,-5233.88,0.00073972,21]
[320348833,1711314655516,-1878.52,0.00073972,120]
[320348835,1711314655525,-500.0,0.00073972,120]
[320348837,1711314655534,-1817.9,0.00073972,120]
[320348839,1711314655543,-500.0,0.00073972,120]
[320348841,1711314655552,-500.0,0.00073972,120]
[320348843,1711314655561,-1440.6,0.00073972,120]
[320348845,1711314655570,-500.0,0.00073972,120]
[320348847,1711314655579,-500.0,0.00073972,120]
[320348849,1711314655588,-2284.3,0.00073972,120]
[320348851,1711314655597,-500.0,0.00073972,120]
[320348853,1711314655606,-500.0,0.00073972,120]
[320348855,1711314655615,-500.0,0.00073972,120]
[320348857,1711314655626,-2647.26,0.00073972,120]
[320348859,1711314655635,-500.0,0.00073972,120]
[320348861,1711314655643,-4853.11,0.00073972,120]
[320348863,1711314655652,-500.0,0.00073972,120]
[320348865,1711314655661,-1492.3,0.00073972,120]
[320348867,1711314655670,-1760.0,0.00074,7]
[320348869,1711314655679,-17135.0,0.00074,7]
[320348871,1711314655688,-529.0,0.00074,7]
[320348873,1711314655697,-1780.77509683,0.00074084,120]
[320348875,1711314655706,-685.02748362,0.00074084,120]
[320348877,1711314655715,-150.59564405,0.00074157,120]
[320348878,1711314655725,-1148.78124106,0.00074818,120]
[320348879,1711314655734,-1148.78124106,0.00074821,120]
[320348880,1711314655743,-1148.78124106,0.00074821,120]
[320348881,1711314655752,-1780.77509683,0.00074839,120]
[320348882,1711314655761,-685.02748362,0.00074839,120]
[320348883,1711314655770,-1148.78124106,0.00074866,120]
[320348884,1711314655779,-1148.78124106,0.00074872,120]
[320348885,1711314655789,-1148.78124106,0.0007492,120]
[320348886,1711314655797,-1148.78124106,0.00074958,120]
[320348887,1711314655807,-1000.0,0.00075,120]
[320348888,1711314655816,-999.999999,0.00075,100]
[320348889,1711314655826,-10000.0,0.00075,10]
[320348890,1711314655835,-1760.0,0.00075,7]
[320348891,1711314655844,-17135.0,0.00075,7]
[320348892,1711314655853,-529.0,0.00075,7]
[320348893,1711314655862,-1780.77509683,0.00075594,120]
[320348894,1711314655871,-685.02748362,0.00075594,120]
[320348895,1711314655880,-10000.0,0.00076,12]
[320348896,1711314655889,-1780.77509683,0.00076349,120]
[320348897,1711314655898,-685.02748362,0.00076349,120]
[320348898,1711314655907,-473.24708317,0.00076712,120]
[320348899,1711314655916,-500.0,0.00076712,120]
[320348900,1711314655926,-803.28,0.00076712,120]
[320348901,1711314655935,-500.0,0.00076712,120]
[320348902,1711314655945,-500.0,0.00076712,120]
[320348903,1711314655954,-500.0,0.00076712,120]
[320348904,1711314655963,-500.0,0.00076712,120]
[320348905,1711314655973,-500.0,0.00076712,120]
[320348906,1711314655982,-500.0,0.00076712,120]
[320348907,1711314655991,-715.49,0.00076712,120]
[320348908,1711314656000,-500.0,0.00076712,120]
[320348909,1711314656010,-500.0,0.00076712,120]
[320348910,1711314656018,-500.0,0.00076712,120]
[320348911,1711314656028,-500.0,0.00076712,120]
[320348912,1711314656037,-500.0,0.00076712,120]
[320348913,1711314656046,-500.0,0.00076712,120]
[320348914,1711314656055,-500.0,0.00076712,2]
[320348915,1711314656064,-327.14480371,0.00076712,120]
[320348916,1711314656074,-2206.63,0.00076712,120]
[320348917,1711314656083,-500.0,0.00076712,120]
[320348918,1711314656092,-2011.08,0.00076712,120]
[320348919,1711314656101,-500.0,0.00076712,120]
[320348920,1711314656109,-299.77999203,0.00076712,120]
[320348921,1711314656119,-359.34593186,0.00076712,120]
[320348922,1711314656133,-545.3,0.00076712,120]
[320348923,1711314656142,-500.0,0.00076712,120]
[320348924,1711314656151,-500.0,0.00076712,120]
[320348925,1711314656161,-500.0,0.00076712,120]
[320348926,1711314656171,-500.0,0.00076712,120]
[320348927,1711314656180,-943.16,0.00076712,120]
[320348928,1711314656189,-514.3,0.00076712,120]
[320348929,1711314656198,-3472.67,0.00076712,120]
[320348930,1711314656209,-484.90057261,0.00076712,120]
[320348931,1711314656219,-500.0,0.00076712,120]
[320348932,1711314656228,-500.0,0.00076712,120]
[320348933,1711314656237,-500.0,0.00076712,120]
[320348934,1711314656246,-500.0,0.00076712,120]
[320348935,1711314656255,-500.0,0.00076712,120]
[320348936,1711314656264,-500.0,0.00076712,120]
[320348937,1711314656273,-500.0,0.00076712,120]
[320348938,1711314656282,-1000.0,0.00076712,120]
[320348939,1711314656291,-1000.0,0.00076712,120]
[320348940,1711314656300,-524.02852461,0.00076712,120]
[320348941,1711314656309,-500.0,0.00076712,120]
[320348942,1711314656318,-500.0,0.00076712,120]
[320348943,1711314656328,-958.04,0.00076712,120]
[320348944,1711314656337,-500.14,0.00076712,120]
[320348945,1711314656346,-500.0,0.00076712,120]
[320348946,1711314656355,-500.0,0.00076712,120]
[320348947,1711314656365,-500.0,0.00076712,120]
[320348948,1711314656374,-500.0,0.00076712,120]
[320348949,1711314656384,-725.0,0.00076712,120]
[320348950,1711314656393,-500.0,0.00076712,120]
[320348951,1711314656402,-500.0,0.00076712,120]
[320348952,1711314656412,-500.0,0.00076712,120]
[320348953,1711314656421,-500.0,0.00076712,120]
[320348954,1711314656431,-500.0,0.00076712,60]
[320348955,1711314656440,-500.0,0.00076712,120]
[320348956,1711314656449,-500.0,0.00076712,120]
[320348957,1711314656458,-2420.29,0.00076712,120]
[320348958,1711314656467,-500.0,0.00076712,120]
[320348959,1711314656477,-500.0,0.00076712,120]
[320348960,1711314656487,-2246.99,0.00076712,120]
[320348961,1711314656496,-500.0,0.00076712,120]
[320348962,1711314656505,-520.98,0.00076712,120]
[320348963,1711314656515,-547.6,0.00076712,120]
[320348964,1711314656525,-500.0,0.00076712,120]
[320348965,1711314656534,-500.0,0.00076712,120]
[320348966,1711314656544,-500.0,0.00076712,120]
[320348967,1711314656553,-500.0,0.00076712,120]
[320348968,1711314656562,-500.0,0.00076712,120]
[320348969,1711314656572,-500.0,0.00076712,120]
[320348970,1711314656580,-500.0,0.00076712,120]
[320348971,1711314656590,-17480.93,0.00076712,120]
[320348972,1711314656599,-8365.44,0.00076712,120]
[320348973,1711314656608,-500.0,0.00076712,120]
[320348974,1711314656618,-500.0,0.00076712,60]
[320348975,1711314656627,-508.8,0.00076712,120]
[320348976,1711314656636,-4057.13,0.00076712,2]
[320348977,1711314656645,-604.16,0.00076712,120]
[320348978,1711314656654,-12362.09,0.00076712,120]
[320348979,1711314656663,-500.0,0.00076712,120]
[320348980,1711314656672,-748.03,0.00076712,120]
[320348981,1711314656681,-2125.6,0.00076712,120]
[320348982,1711314656690,-500.0,0.00076712,120]
[320348983,1711314656699,-2970.68,0.00076712,120]
[320348985,1711314656708,-694.69,0.00076712,120]
[320348987,1711314656717,-22313.25,0.00076712,120]
[320348989,1711314656727,-500.0,0.00076712,120]
[320348990,1711314656736,-500.0,0.00076712,120]
[320348991,1711314656746,-500.0,0.00076712,120]
[320348992,1711314656761,-4561.4,0.00076712,120]
[320348993,1711314656775,-500.0,0.00076712,120]
[320348994,1711314656788,-1831.01,0.00076712,120]
[320348995,1711314656797,-4406.86,0.00076712,120]
[320348996,1711314656806,-500.0,0.00076712,120]
[320348997,1711314656815,-1837.47,0.00076712,120]
[320348998,1711314656824,-658.57,0.00076712,120]
[320348999,1711314656833,-500.0,0.00076712,120]
[320349000,1711314656842,-2332.34,0.00076712,120]
[320349001,1711314656851,-500.0,0.00076712,120]
[320349002,1711314656860,-2761.55,0.00076712,120]
[320349003,1711314656870,-5308.35,0.00076712,120]
[320349004,1711314656878,-500.0,0.00076712,120]
[320349005,1711314656887,-11981.95,0.00076712,120]
[320349006,1711314656896,-2313.51,0.00076712,120]
[320349007,1711314656906,-500.0,0.00076712,120]
[320349009,1711314656915,-507.88,0.00076712,120]
[320349011,1711314656924,-500.0,0.00076712,120]
[320349013,1711314656933,-993.58,0.00076712,120]
[320349015,1711314656942,-500.0,0.00076712,120]
[320349017,1711314656951,-915.03,0.00076712,120]
[320349019,1711314656959,-612.08,0.00076712,120]
[320349020,1711314656969,-500.0,0.00076712,120]
[320349022,1711314656978,-2001.62,0.00076712,120]
[320349024,1711314656987,-1087.35,0.00076712,120]
[320349026,1711314656996,-22472.06,0.00076712,120]
[320349028,1711314657005,-25985.32,0.00076712,90]
[320349030,1711314657014,-989.84,0.00076712,120]
[320349032,1711314657024,-1543.9,0.00076712,120]
[320349034,1711314657033,-3779.01,0.00076712,120]
[320349036,1711314657043,-500.0,0.00076712,120]
[320349038,1711314657053,-5233.88,0.00076712,21]
[320349040,1711314657061,-1878.52,0.00076712,120]
[320349042,1711314657070,-500.0,0.00076712,120]
[320349044,1711314657079,-1817.9,0.00076712,120]
[320349046,1711314657089,-500.0,0.00076712,120]
[320349048,1711314657099,-500.0,0.00076712,120]
[320349050,1711314657108,-1440.6,0.00076712,120]
[320349052,1711314657118,-500.0,0.00076712,120]
[320349054,1711314657127,-500.0,0.00076712,120]
[320349055,1711314657138,-2284.3,0.00076712,120]
[320349056,1711314657147,-500.0,0.00076712,120]
[320349057,1711314657157,-372.66975892,0.00076712,120]
[320349060,1711314657270,-519.38813806,0.00027397,2]
[320349061,1711314657280,-500.0,0.00065753,120]
[320349062,1711314657290,-127.33024108,0.00076712,120]
[320349063,1711314657299,-500.0,0.00076712,120]
[320349064,1711314657309,-2647.26,0.00076712,120]
[320349065,1711314657318,-555.61418656,0.00076712,120]
[320349066,1711314657327,-4853.11,0.00076712,120]
[320349067,1711314657337,-475.53660052,0.00076712,120]
[320349068,1711314657909,-262.3827165,0.00027397,2]
[320349069,1711314658301,-1.07353476,0.00027,2]
[320349072,1711315463099,1600.0,0.0002,2]
[320349073,1711315612984,150.0,0.000189,2]
[320349074,1711315639901,-281.08411472,0.00021999,2]
[320349075,1711315639926,-149.91588528,0.00022,2]
[320349170,1711315840007,-5.02213951,0.00022,2]
[320349171,1711315840018,-445.20357372,0.00027376,2]
[320349172,1711315840027,-178.90211857,0.00027393,2]
[320349173,1711315840040,-598.0205773,0.00027393,2]
[320349174,1711315840051,-833.43012908,0.00027393,2]
[320349175,1711315840060,-1619.429426,0.00027394,2]
[320349176,1711315840068,-1821.91248065,0.00027396,2]
[320349177,1711315840077,-744.90776227,0.000274,2]
[320349178,1711315840086,-593.28409045,0.00037898,2]
[320349179,1711315840095,-150.59564409,0.00037899,7]
[320349180,1711315840105,-663.17872414,0.00038,4]
[320349181,1711315840114,-166.666666,0.00041178,2]
[320349182,1711315840123,-166.666666,0.00042301,2]